Cogmind - Beta 14 @@@ ROGUE MODE // 2024.09.17 @ 12:35:11 Player: AnotherZach Result: Destroyed by P-80 Master with Gamma Rifle Performance ------------- Evolutions (8) 4000 Regions Visited (13) 2600 Robots Destroyed (53) 265 Value Destroyed (1321) 1321 Prototype IDs (29) 580 Alien Tech Used (0) 0 Bonus (1366) 1366 TOTAL SCORE: 10132 Bonus ------- High Alert Combat Kills 66 Entered DSFs 1000 Aligned with FarCom 300 Cogmind --------- Core Integrity 0/1450 Matter 219/300 Energy 142/265 System Corruption 21% Temperature Cool (8) Movement Flying (34) Location -2/Research Parts ------- > --- POWER (2) -------- Improved Ion Engine Backup Power VII > --- PROPULSION (7) --- Impulse Thruster Impulse Thruster Array Impulse Thruster Array Impulse Thruster Array > --- UTILITY (12) ----- Structural Scanner Machine Analyzer Enhanced Optical Array Terrain Scan Processor Improved Hacking Suite Improved Hacking Suite > --- WEAPON (2) ------- Heavy Pick > --- INVENTORY (5) ---- Impulse Thruster Improved Focal Shield Trap Reconfigurator Peak State ------------ > --- POWER ------------ Improved Quantum Reactor Improved Quantum Reactor > --- PROPULSION ------- Gravmag Array Improved Antigrav System Improved Antigrav System Improved Gyrokinetic Inverter Improved Gyrokinetic Inverter Improved Gyrokinetic Inverter > --- UTILITY ---------- Advanced Heat Sink Medium Storage Unit Machine Analyzer Enhanced Optical Array Terrain Scan Processor Improved Targeting Computer Advanced Melee Analysis Suite Advanced ECM Suite Advanced Force Field Hacking Suite Improved Hacking Suite Improved Hacking Suite > --- WEAPON ----------- HERF Cannon Heavy Pick > --- INVENTORY -------- Improved Ion Engine Light Antimatter Reactor Compact Matter Pod Improved Matter Compressor Structural Scanner Improved Focal Shield Advanced Force Field Advanced Force Field Trap Reconfigurator [Rating: 130] Favorites ----------- Power Light Quantum Reactor Engine Light Ion Engine Power Core Enhanced Fission Core Reactor Light Quantum Reactor Propulsion Flight Unit Treads Light Treads Leg Carbon-fiber Leg Wheel Armored Huge Wheel Hover Unit Improved Gyrokinetic Inverter Flight Unit Flight Unit Utility Improved Hacking Suite Device Structural Scanner Storage Small Storage Unit Processor Terrain Scan Processor Hackware Improved Hacking Suite Protection Improved Propulsion Shielding Weapon Heavy Pick Energy Gun Advanced Plasma Rifle Energy Cannon HERF Cannon Ballistic Gun Light Assault Rifle Launcher Mini Grenade Launcher Special Weapon Field Lobotomy Kit Slashing Weapon Katana Piercing Weapon Heavy Pick Build | -11 -10 -10 -10 -9 -8 -7 -7 -6 -5 -4 -3 -3 -2 ------- Run | Yrd Mat Min Exi Min Mat Fac DSF Fac Fac Fac Res DSF Res Slots Evolved 16 | . . . . . 4 2 . 2 2 2 2 . 2 Power 1 | . . . . . . . . . . 1 . . . Propulsion 5 | . . . . . 2 2 . . . . 1 . . Utility 10 | . . . . . 2 . . 2 2 1 1 . 2 Weapon . | . . . . . . . . . . . . . . Parts Attached 143 | 7 9 1 2 . 12 6 6 19 18 11 9 10 33 Power 16 | 1 . . . . 1 . . 1 1 2 . 2 8 Engine 3 | 1 . . . . 1 . . . . . . . 1 Core 4 | . . . . . . . . 1 1 1 . . 1 Reactor 9 | . . . . . . . . . . 1 . 2 6 Propulsion 37 | 2 3 . . . 6 2 . 4 3 2 2 3 10 Treads 3 | 2 1 . . . . . . . . . . . . Leg 1 | . . . . . 1 . . . . . . . . Wheel 2 | . . . . . 1 1 . . . . . . . Hover 13 | . . . . . 1 . . 1 . 1 2 3 5 Flight 18 | . 2 . . . 3 1 . 3 3 1 . . 5 Utility 63 | 2 2 . . . 4 3 2 10 12 5 7 3 13 Device 35 | 2 1 . . . . . 1 7 6 2 6 1 9 Storage 10 | . 1 . . . 2 3 . . 1 1 1 . 1 Processor 7 | . . . . . 2 . 1 1 1 . . . 2 Hackware 5 | . . . . . . . . 2 3 . . . . Protection 6 | . . . . . . . . . 1 2 . 2 1 Artifact . | . . . . . . . . . . . . . . Weapon 27 | 2 4 1 2 . 1 1 4 4 2 2 . 2 2 Energy Gun 2 | . . . . . . . . . . 1 . 1 . Energy Cannon 1 | . . . . . . . . . . . . . 1 Ballistic Gun 6 | 2 3 . . . . . . . . . . . 1 Ballistic Cannon . | . . . . . . . . . . . . . . Launcher 11 | . 1 1 1 . 1 . 2 2 1 1 . 1 . Special Weapon 1 | . . . 1 . . . . . . . . . . Impact Weapon . | . . . . . . . . . . . . . . Slashing Weapon 4 | . . . . . . 1 2 1 . . . . . Piercing Weapon 2 | . . . . . . . . 1 1 . . . . Special Melee Weapon . | . . . . . . . . . . . . . . Unidentified Prototypes 6 | . . . . . . . . . 1 2 1 . 2 Parts Lost 35 | . . . . . 2 . . . 3 . . 2 28 Power 6 | . . . . . . . . . . . . . 6 Propulsion 13 | . . . . . 1 . . . 1 . . 2 9 Utility 13 | . . . . . 1 . . . 1 . . . 11 Weapon 3 | . . . . . . . . . 1 . . . 2 Highest Loss Streak 13 | . . . . . 2 . . . 3 . . 2 13 To Critical Strikes . | . . . . . . . . . . . . . . Average Slot Usage (%) 84 | . 71 83 58 71 84 86 92 93 93 85 83 86 79 Engine 1 | . . . . . 5 7 7 3 . . . . . Core 1 | . . . . . . . . 2 5 4 . . . Reactor 2 | . . . . . . . . . . 2 4 6 6 Treads 1 | . 22 . . . . . . . . . . . . Hover 6 | . . . . . 2 . . . 1 2 7 17 18 Flight 18 | . 4 28 28 28 27 29 30 31 28 21 19 5 . Device 9 | . 26 14 14 14 8 . 5 6 3 5 10 12 12 Storage 5 | . 1 14 14 14 10 14 8 6 5 5 4 4 2 Processor 14 | . . . . . 10 15 15 20 22 15 14 14 15 Hackware 7 | . . . . . . . . 3 8 15 14 14 12 Protection 1 | . . . . . . . . . 2 4 2 1 2 Launcher 5 | . 7 26 1 14 18 7 8 6 5 . . 1 1 Piercing Weapon 2 | . . . . . . . . . 4 5 4 4 4 Peak Build Rating 130 | 5 6 9 15 8 23 30 33 44 68 92 94 112 130 Average Rating 59 | 3 5 8 5 8 15 25 31 37 61 77 89 99 102 On Entrance 34 | . 4 6 9 8 8 13 30 31 44 62 74 90 109 Naked Turns . | . . . . . . . . . . . . . . Heaviest Build 77 | 3 7 8 7 7 16 14 18 16 31 46 27 60 77 Greatest Support 80 | 3 40 8 8 8 28 18 18 26 34 32 32 76 80 Greatest Overweight (x) 5 | . 1 . . . . . . . 5 1 . . 1 Average Overweight (x) . | . . . . . . . . . . . . . . Largest Inventory Capacity 10 | 5 8 8 8 8 10 8 8 8 10 10 8 8 10 Average Capacity 7 | 5 5 8 8 8 8 7 8 8 8 8 8 8 7 Most Carried 10 | 5 5 6 8 8 10 8 8 8 10 9 8 8 10 Average Carried 7 | 2 4 5 7 8 8 7 7 7 8 7 7 7 6 Final Capacity 10 | 5 8 8 8 8 8 8 8 8 10 8 8 8 5 Final Carried 10 | 5 5 6 8 8 7 8 8 8 10 8 8 8 3 Class Distribution -------------------- 27% | Hacker-Scout 20% | Mutant 17% | Hacker-Ninja 15% | Scout 9% | Scavenger-Scout 5% | Sprinter 4% | Hacker-Assassin Dominant Class ---------------- Mutant | -10/Materials Mutant | -10/Mines Mutant | -10/Exiles Mutant | -9/Mines Mutant | -8/Materials Sprinter | -7/Factory Sprinter | -7/DSF Scavenger-Scout | -6/Factory Scout | -5/Factory Hacker-Scout | -4/Factory Hacker-Scout | -3/Research Hacker-Scout | -3/DSF Hacker-Ninja | -2/Research Resources | -11 -10 -10 -10 -9 -8 -7 -7 -6 -5 -4 -3 -3 -2 ----------- Run | Yrd Mat Min Exi Min Mat Fac DSF Fac Fac Fac Res DSF Res Matter Collected 2132 | 245 66 377 100 . 139 . 45 199 221 19 154 86 481 Remotely 86 | 47 39 . . . . . . . . . . . . Salvage Created 1543 | 80 66 50 . . 21 . 70 63 445 53 28 86 581 Parts 121 | 7 8 4 . . 4 . 6 4 24 7 2 5 50 Haulers Intercepted 1 | . . . . . . . . . . . . . 1 Recyclers Shooed 4 | 1 2 . . . . . . . . . . . 1 Parts Field Recycled . | . . . . . . . . . . . . . . Retrieved Matter . | . . . . . . . . . . . . . . Parts Self-Destructed . | . . . . . . . . . . . . . . Prevented . | . . . . . . . . . . . . . . Kills | -11 -10 -10 -10 -9 -8 -7 -7 -6 -5 -4 -3 -3 -2 ------- Run | Yrd Mat Min Exi Min Mat Fac DSF Fac Fac Fac Res DSF Res Combat Hostiles Destroyed 39 | . 6 2 . . 3 . 3 4 8 4 . 1 8 Melee 6 | . . . . . . . . . 2 . . 1 3 Guns 3 | . 3 . . . . . . . . . . . . AOE 30 | . 3 2 . . 3 . 3 4 6 4 . . 5 Classes Destroyed 11 | 2 1 1 . . . . 1 . 2 1 . 1 2 Worker 2 | . . . . . . . . . 1 . . . 1 Builder 2 | . . . . . . . . . . 1 . . 1 Tunneler 4 | 1 . . . . . . . . . . 1 . 2 Hauler 1 | . . . . . . . . . . . . . 1 Recycler 4 | 1 . . . . . . . . 2 . . . 1 Operator 1 | . . . . . . . . . 1 . . . . Swarmer 30 | . 6 . . . 3 . . 4 8 4 . . 5 Cutter 3 | . . . . . . . 3 . . . . . . Grunt 2 | . . 2 . . . . . . . . . . . Specialist 1 | . . . . . . . . . . . . 1 . Programmer 3 | . . . . . . . . . . . . . 3 Best Kill Streak 5 | 2 3 2 . . 3 . 3 4 4 4 1 1 5 Combat Bots Only 5 | . 3 2 . . 3 . 3 4 4 4 . 1 5 Max Kills in Single Turn 3 | 1 3 1 . . 2 . 3 3 3 3 1 1 3 Gunslinging . | . . . . . . . . . . . . . . Exploded 3 | . 3 1 . . 2 . 3 3 3 3 . . 3 Melee 1 | . . . . . . . . . 1 . . 1 1 Uniques/NPCs Destroyed . | . . . . . . . . . . . . . . Combat | -11 -10 -10 -10 -9 -8 -7 -7 -6 -5 -4 -3 -3 -2 -------- Run | Yrd Mat Min Exi Min Mat Fac DSF Fac Fac Fac Res DSF Res Hostile Shots Fired 480 | . 27 1 . . 17 . 10 10 18 4 . 28 365 Missed 202 | . 7 . . . 6 . 6 8 8 2 . 6 159 Damage Taken 6118 | . 188 12 . . 118 . 184 34 504 57 . 299 4722 Core 1815 | . 31 10 . . 23 . . 17 154 24 . 101 1455 Absorbed by Shields 155 | . . . . . . . . . . . . . 155 Redirected to Shielding 137 | . . . . . . . . . 32 . . . 105 Regen/Repaired (Parts) 154 | . . . . . . . . . . . . . 154 Core Remaining (%) 93 | 100 . . . 83 95 . 100 98 84 97 . 92 . Volleys Fired 46 | 8 12 2 . . 2 . 1 2 7 3 . . 9 Largest 2 | 2 2 2 . . 2 . 2 1 2 1 . . 1 Hottest 69 | 40 40 60 . . 60 . 69 39 69 39 . . 39 Shots Fired 70 | 16 22 4 . . 3 . 2 2 9 3 . . 9 Gun 36 | 16 20 . . . . . . . . . . . . Cannon . | . . . . . . . . . . . . . . Launcher 34 | . 2 4 . . 3 . 2 2 9 3 . . 9 Special . | . . . . . . . . . . . . . . Kinetic 36 | 16 20 . . . . . . . . . . . . Thermal . | . . . . . . . . . . . . . . Explosive 34 | . 2 4 . . 3 . 2 2 9 3 . . 9 Electromagnetic . | . . . . . . . . . . . . . . Robot Hit Streak 7 | 3 7 2 . . . . . . 4 1 . . 3 Robot Miss Streak 2 | 2 2 1 . . 1 . . . . 1 . . 2 Penetration Max . | . . . . . . . . . . . . . . Secondary Targets 2 | . 2 . . . . . . . . . . . . Max Gunslinging Chain 1 | . 1 . . . . . . . . . . . . Shots Hit Robots 68 | 10 15 2 . . . . . . 10 3 1 3 24 Core Hits 77 | 4 7 5 . . 3 . 10 6 14 6 . 2 20 Critical Kills . | . . . . . . . . . . . . . . Critical Parts Destroyed . | . . . . . . . . . . . . . . Critical Strikes 4 | . . . . . . . . . . . . . 4 Impale 4 | . . . . . . . . . . . . . 4 Melee Attacks 100 | . . . . . . 2 . 3 25 9 8 4 49 Impact . | . . . . . . . . . . . . . . Slashing 5 | . . . . . . 2 . 3 . . . . . Piercing 95 | . . . . . . . . . 25 9 8 4 49 Sneak Attacks 13 | . . . . . . . . . 3 1 1 1 7 Combat Hostiles 1 | . . . . . . . . . . . . 1 . Follow-up Attacks . | . . . . . . . . . . . . . . Damage Inflicted 4739 | 89 245 127 . . 164 . 357 240 951 542 70 168 1786 Guns 206 | 89 117 . . . . . . . . . . . . Cannons . | . . . . . . . . . . . . . . Explosions 2859 | . 116 127 . . 164 . 357 240 676 372 . . 807 Melee 1624 | . . . . . . . . . 275 132 70 168 979 Ramming 50 | . 12 . . . . . . . . 38 . . . Kinetic 206 | 89 117 . . . . . . . . . . . . Thermal 240 | . . . . . . . . . . 240 . . . Explosive 2619 | . 116 127 . . 164 . 357 240 676 132 . . 807 Electromagnetic . | . . . . . . . . . . . . . . Impact . | . . . . . . . . . . . . . . Slashing . | . . . . . . . . . . . . . . Piercing 1624 | . . . . . . . . . 275 132 70 168 979 Highest Corruption 20 | . 1 1 1 1 . . . . 9 . . . 20 Average Corruption 5 | . 1 1 1 1 . . . . 9 . . . 8 Corruption Purged . | . . . . . . . . . . . . . . Corruption Blocked . | . . . . . . . . . . . . . . Effects 18 | . . 2 . . . . . . . . . . 16 Message Errors 3 | . . . . . . . . . . . . . 3 Matter Fused 4 | . . . . . . . . . . . . . 4 Heat Flow Errors 2 | . . . . . . . . . . . . . 2 Energy Discharges 4 | . . . . . . . . . . . . . 4 Data Loss (minor) 2 | . . 1 . . . . . . . . . . 1 Alerts 2 | . . 1 . . . . . . . . . . 1 Misdirections 1 | . . . . . . . . . . . . . 1 Overload Shots . | . . . . . . . . . . . . . . Overflow Damage 439 | . . . . . 10 . . . 1 61 30 . 337 Projectiles . | . . . . . . . . . . . . . . Explosions 46 | . . . . . 10 . . . . . . . 36 Melee 393 | . . . . . . . . . 1 61 30 . 301 Knockbacks . | . . . . . . . . . . . . . . Impact . | . . . . . . . . . . . . . . Kinetic . | . . . . . . . . . . . . . . Secondary . | . . . . . . . . . . . . . . Self-Inflicted Damage 109 | . 39 2 . . . . . . . 19 . . 49 Shots 4 | . 1 1 . . . . . . . . . . 2 Rammed 2 | . 1 . . . . . . . . 1 . . . Targets Rammed 2 | . 1 . . . . . . . . 1 . . . Kicked . | . . . . . . . . . . . . . . Crushed . | . . . . . . . . . . . . . . Highest Temperature 198 | . . 5 . . . . . 42 5 . . . 198 Average Temperature 33 | . . 3 . . . . . 19 4 . . . 53 Received Heat Transfer 345 | . . 6 . . 36 . . . 18 9 . 132 144 Siege Activations . | . . . . . . . . . . . . . . Robots Corrupted . | . . . . . . . . . . . . . . Combat Hostiles . | . . . . . . . . . . . . . . Parts Fried . | . . . . . . . . . . . . . . Impact Corruptions . | . . . . . . . . . . . . . . Robots Melted . | . . . . . . . . . . . . . . Combat Hostiles . | . . . . . . . . . . . . . . Parts Melted . | . . . . . . . . . . . . . . Heat Transferred 150 | . . . . . . . . . . 150 . . . Parts Sabotaged . | . . . . . . . . . . . . . . Parts Stolen . | . . . . . . . . . . . . . . Parts Stripped . | . . . . . . . . . . . . . . Power Chain Reactions . | . . . . . . . . . . . . . . Alert | -11 -10 -10 -10 -9 -8 -7 -7 -6 -5 -4 -3 -3 -2 ------- Run | Yrd Mat Min Exi Min Mat Fac DSF Fac Fac Fac Res DSF Res Peak Influence 547 | 10 249 183 . . 117 54 126 394 447 317 147 126 547 Initial 192 | . 6 96 . . . 44 37 65 192 107 114 111 70 Average 206 | 2 117 169 . . 60 51 78 226 283 154 123 114 299 Maximum Alert Level 2 | . 1 . . . . . . 1 2 1 . . 2 Low Security (%) 57 | 100 77 100 . 100 100 100 100 49 15 87 100 100 27 Level 1 33 | . 22 . . . . . . 50 72 12 . . 47 Level 2 8 | . . . . . . . . . 12 . . . 24 Level 3 . | . . . . . . . . . . . . . . Level 4 . | . . . . . . . . . . . . . . Level 5 . | . . . . . . . . . . . . . . High Security . | . . . . . . . . . . . . . . Max Security . | . . . . . . . . . . . . . . Squads Dispatched 24 | . . . . . 1 1 2 6 6 . 1 . 7 Investigation 15 | . . . . . 1 1 . 6 4 . 1 . 2 Extermination 1 | . . . . . . . . . . . . . 1 Reinforcement 7 | . . . . . . . 2 . 2 . . . 3 Assault 1 | . . . . . . . . . . . . . 1 Garrison . | . . . . . . . . . . . . . . Intercept . | . . . . . . . . . . . . . . Searches Triggered . | . . . . . . . . . . . . . . Construction Impeded 1 | . . . . . . . . . . . . . 1 Haulers Reinforced . | . . . . . . . . . . . . . . Active Scanning Responses . | . . . . . . . . . . . . . . Cargo Convoy Interrupts . | . . . . . . . . . . . . . . Stealth | -11 -10 -10 -10 -9 -8 -7 -7 -6 -5 -4 -3 -3 -2 --------- Run | Yrd Mat Min Exi Min Mat Fac DSF Fac Fac Fac Res DSF Res Distress Signals 5 | . . . . . 2 . . . . . . . 3 Communications Jammed . | . . . . . . . . . . . . . . Distress Signals . | . . . . . . . . . . . . . . Times Spotted 112 | . 9 2 . . 12 . 5 6 17 5 . 3 53 Peak Tracking Total 22 | . 3 2 . . 8 . 4 4 5 3 . 1 22 Tactical Retreats 16 | . 1 . . . . . . 1 4 . . 1 9 Traps | -11 -10 -10 -10 -9 -8 -7 -7 -6 -5 -4 -3 -3 -2 ------- Run | Yrd Mat Min Exi Min Mat Fac DSF Fac Fac Fac Res DSF Res Traps Triggered 5 | . 1 . . . . . 1 . 1 . . . 2 Indirectly . | . . . . . . . . . . . . . . Trap Hack Attempts . | . . . . . . . . . . . . . . Triggered . | . . . . . . . . . . . . . . Disarmed . | . . . . . . . . . . . . . . Reprogrammed . | . . . . . . . . . . . . . . Reused 6 | . . . . . . . . 6 . . . . . Traps Reconfigurated 16 | . . . . . . . . 10 5 . . 1 . Traps Extracted . | . . . . . . . . . . . . . . Installed . | . . . . . . . . . . . . . . Triggered 6 | . . . . . . . . 6 . . . . . Machines | -11 -10 -10 -10 -9 -8 -7 -7 -6 -5 -4 -3 -3 -2 ---------- Run | Yrd Mat Min Exi Min Mat Fac DSF Fac Fac Fac Res DSF Res Machines Disabled 2 | . . 1 . . . . . . . 1 . . . Max in Single Turn 1 | . . 1 . . . . . . . 1 . . . Garrison Access 2 | . . . . . . . . . . . 1 . 1 Machines Repaired . | . . . . . . . . . . . . . . Machines Dismantled . | . . . . . . . . . . . . . . Machines Sabotaged . | . . . . . . . . . . . . . . Overloaded Fab Kills . | . . . . . . . . . . . . . . Hacking | -11 -10 -10 -10 -9 -8 -7 -7 -6 -5 -4 -3 -3 -2 --------- Run | Yrd Mat Min Exi Min Mat Fac DSF Fac Fac Fac Res DSF Res Machines Accessed 44 | . 3 . 1 . 2 4 . 9 12 5 3 . 5 Terminals 27 | . 2 . . . 2 2 . 5 9 3 2 . 2 Fabricators 7 | . . . . . . 1 . 2 2 2 . . . Repair Stations 2 | . . . . . . . . . . . . . 2 Recycling Units 5 | . 1 . . . . 1 . 1 1 . . . 1 Scanalyzers 1 | . . . . . . . . 1 . . . . . Garrison Access 1 | . . . . . . . . . . . 1 . . Total Hacks 110 | . 9 . 1 . 8 8 . 24 35 8 8 . 9 Successful 64 | . 3 . 1 . 2 5 . 15 22 6 4 . 6 Failed 46 | . 6 . . . 6 3 . 9 13 2 4 . 3 Catastrophic 7 | . 1 . . . . 2 . 1 3 . . . . Database Lockouts . | . . . . . . . . . . . . . . Manual 68 | . 8 . 1 . 8 5 . 16 21 5 1 . 3 Terminals 71 | . 8 . . . 8 4 . 13 26 4 4 . 4 Fabricators 22 | . . . . . . 3 . 8 7 4 . . . Repair Stations 3 | . . . . . . . . . . . . . 3 Recycling Units 7 | . 1 . . . . 1 . 1 2 . . . 2 Scanalyzers 2 | . . . . . . . . 2 . . . . . Garrison Access 4 | . . . . . . . . . . . 4 . . Terminal Hacks 26 | . 1 . 1 . 1 2 . 4 10 3 2 . 2 Record 1 | . . . . . . . . . . . . . 1 Part Schematic 4 | . . . . . . 1 . 1 1 1 . . . Robot Schematic 1 | . 1 . . . . . . . . . . . . Open Door 1 | . . . . . . . . . 1 . . . . Open DSF 3 | . . . . . . 1 . . . . 1 . 1 Level Access Points 5 | . . . . . 1 . . 1 1 1 1 . . Alert Level 2 | . . . . . . . . . 2 . . . . Unreport Threat 3 | . . . . . . . . . 2 1 . . . Locate Traps 1 | . . . . . . . . 1 . . . . . Dispatch Records 1 | . . . . . . . . . 1 . . . . Recall Investigation 2 | . . . . . . . . 1 1 . . . . Zone Layout 1 | . . . . . . . . . 1 . . . . Derelict Proto ID Bank 1 | . . . 1 . . . . . . . . . . Fabricator Hacks 11 | . . . . . . 1 . 4 4 2 . . . Network Status 3 | . . . . . . . . 1 1 1 . . . Load Schematic 5 | . . . . . . 1 . 2 2 . . . . Build 3 | . . . . . . . . 1 1 1 . . . Repair Station Hacks 1 | . . . . . . . . . . . . . 1 Refit 1 | . . . . . . . . . . . . . 1 Recycling Unit Hacks 5 | . 1 . . . . . . 1 1 . . . 2 Process 1 | . . . . . . . . . . . . . 1 Retrieve Matter 1 | . . . . . . . . . . . . . 1 Retrieve Components 3 | . 1 . . . . . . 1 1 . . . . Scanalyzer . | . . . . . . . . . . . . . . Garrison Access Hacks 1 | . . . . . . . . . . . 1 . . Seal Access 1 | . . . . . . . . . . . 1 . . Unauthorized Hacks 20 | . 1 . . . 1 2 . 6 7 1 1 . 1 Terminals 12 | . 1 . . . 1 1 . 4 5 . . . . Track 3 | . . . . . . . . 1 2 . . . . Assimilate 2 | . . . . . 1 . . 1 . . . . . Botnet 6 | . 1 . . . . 1 . 2 2 . . . . Skim 1 | . . . . . . . . . 1 . . . . Fabricators 5 | . . . . . . 1 . 1 2 1 . . . Liberate 2 | . . . . . . . . 1 1 . . . . Fabnet 1 | . . . . . . . . . . 1 . . . Recompile 2 | . . . . . . 1 . . 1 . . . . Repair Stations 1 | . . . . . . . . . . . . . 1 Patch 1 | . . . . . . . . . . . . . 1 Recycling Units . | . . . . . . . . . . . . . . Scanalyzers 1 | . . . . . . . . 1 . . . . . Extract 1 | . . . . . . . . 1 . . . . . Garrison Access 1 | . . . . . . . . . . . 1 . . Redirect 1 | . . . . . . . . . . . 1 . . Data Cores Recovered . | . . . . . . . . . . . . . . Used . | . . . . . . . . . . . . . . Hacking Detections 33 | . 3 . . . 2 2 . 6 10 5 2 . 3 Full Trace Events 11 | . 1 . . . 1 . . 5 2 . 1 . 1 Feedback Events . | . . . . . . . . . . . . . . Feedback Blocked . | . . . . . . . . . . . . . . Robot Schematics Acquired 1 | . 1 . . . . . . . . . . . . Robots Built . | . . . . . . . . . . . . . . Authchips . | . . . . . . . . . . . . . . Time . | . . . . . . . . . . . . . . Total Robot Build Rating . | . . . . . . . . . . . . . . Part Schematics Acquired 5 | . . . . . . 1 . 2 1 1 . . . Parts Built 4 | . . . . . . . . 1 1 2 . . . Authchips 2 | . . . . . . . . 1 1 . . . . Time 173 | . . . . . . . . 73 31 69 . . . Total Part Build Rating 26 | . . . . . . . . 3 5 18 . . . Parts Repaired . | . . . . . . . . . . . . . . Time . | . . . . . . . . . . . . . . Parts Recycled . | . . . . . . . . . . . . . . Recycled Matter 20 | . . . . . . . . . . . . . 20 Retrieved Matter 20 | . . . . . . . . . . . . . 20 Retrieved Components 5 | . 1 . . . . . . 1 3 . . . . Parts Scanalyzed . | . . . . . . . . . . . . . . Part Schematics Acquired . | . . . . . . . . . . . . . . Parts Damaged . | . . . . . . . . . . . . . . Bothacking | -11 -10 -10 -10 -9 -8 -7 -7 -6 -5 -4 -3 -3 -2 ------------ Run | Yrd Mat Min Exi Min Mat Fac DSF Fac Fac Fac Res DSF Res Used RIF Installer . | . . . . . . . . . . . . . . Robots Hacked . | . . . . . . . . . . . . . . Non-combat . | . . . . . . . . . . . . . . Combat . | . . . . . . . . . . . . . . Robot Hacks Applied . | . . . . . . . . . . . . . . Relay Couplers Released 1 | . . . . . . . . . . . . . 1 Machine Destruction 1 | . . . . . . . . . . . . . 1 Fabnet Peak Effective % 3 | . . . . . . . . . . . 3 3 1 Robots Rewired . | . . . . . . . . . . . . . . Allies Hacked . | . . . . . . . . . . . . . . Hacks Repelled . | . . . . . . . . . . . . . . Allies | -11 -10 -10 -10 -9 -8 -7 -7 -6 -5 -4 -3 -3 -2 -------- Run | Yrd Mat Min Exi Min Mat Fac DSF Fac Fac Fac Res DSF Res Total Allies 3 | . . 1 . . 1 . . 1 . . . . . Largest Group 1 | . . 1 . . 1 . . 1 1 . . . . Highest-Rated Group 31 | . . 31 . . 10 . . 26 26 . . . . Highest-Rated Ally 31 | . . 31 . . 10 . . 26 26 . . . . Total Orders . | . . . . . . . . . . . . . . Ally Attacks . | . . . . . . . . . . . . . . Total Damage . | . . . . . . . . . . . . . . Kills . | . . . . . . . . . . . . . . Allies Corrupted . | . . . . . . . . . . . . . . Allies Melted . | . . . . . . . . . . . . . . Intel | -11 -10 -10 -10 -9 -8 -7 -7 -6 -5 -4 -3 -3 -2 ------- Run | Yrd Mat Min Exi Min Mat Fac DSF Fac Fac Fac Res DSF Res Robot Analysis Total . | . . . . . . . . . . . . . . Derelict Logs Recovered 2 | . . 2 . . . . . . . . . . . Drone Launches . | . . . . . . . . . . . . . . Drone Recoveries . | . . . . . . . . . . . . . . Exploration | -11 -10 -10 -10 -9 -8 -7 -7 -6 -5 -4 -3 -3 -2 ------------- Run | Yrd Mat Min Exi Min Mat Fac DSF Fac Fac Fac Res DSF Res Turns Passed 2608 | 58 153 164 92 32 97 79 56 315 429 262 122 71 678 Spaces Moved 4250 | 45 184 391 231 86 152 159 89 520 870 319 262 77 865 Core 169 | 45 121 . . . . . . . 2 . . . 1 Treads 13 | . 13 . . . . . . . . . . . . Legs . | . . . . . . . . . . . . . . Wheels 6 | . . . . . 6 . . . . . . . . Hover 778 | . . . . . . . . . . . . 69 709 Flight 3284 | . 50 391 231 86 146 159 89 520 868 319 262 8 155 Fastest Speed 23 | 50 37 37 37 37 31 31 41 23 24 26 26 29 34 Average Speed 37 | 50 54 37 37 37 39 36 41 31 27 43 28 51 48 Slowest Speed 300 | 50 160 37 37 37 100 41 41 41 300 109 29 62 110 Overloaded Moves . | . . . . . . . . . . . . . . Propulsion Burnouts . | . . . . . . . . . . . . . . Robots Hopped 8 | . 1 5 . . . . . 1 . . 1 . . Cave-ins Triggered 2 | . . . . . . . . . 1 . . . 1 Exploration Rate (%) 36 | 3 36 85 60 42 17 6 84 19 28 9 10 78 28 Regions Visited 13 Branch Regions 3 Pre-discovered Areas . | . . . . . . . . . . . . . . Known Exits Taken 6 | . . . . . 1 1 . 1 1 1 1 . . Unknown Exits Taken 5 | 1 1 1 1 1 . . . . . . . . . Scrap Searched 1 | . . 1 . . . . . . . . . . . Spaces Dug 78 | . . . . . . 2 . 7 19 4 5 . 41 Terrain Destroyed 365 | . 28 28 . . 30 2 14 11 93 60 5 . 94 Melee 48 | . . . . . . 2 . 3 19 4 5 . 15 Projectile . | . . . . . . . . . . . . . . AOE 317 | . 28 28 . . 30 . 14 8 74 56 . . 79 Terrain Rammed . | . . . . . . . . . . . . . . Walls Destroyed . | . . . . . . . . . . . . . . Machines Disabled . | . . . . . . . . . . . . . . Actions | -11 -10 -10 -10 -9 -8 -7 -7 -6 -5 -4 -3 -3 -2 --------- Run | Yrd Mat Min Exi Min Mat Fac DSF Fac Fac Fac Res DSF Res Total 4971 | 66 220 401 238 85 188 177 106 662 1008 421 289 98 1012 Wait 273 | . 2 9 . . 3 . . 104 61 65 5 . 24 Move 4221 | 44 181 380 230 85 151 158 88 517 868 319 259 76 865 Hop 8 | . 1 5 . . . . . 1 . . 1 . . Pick Up 73 | 4 5 3 2 . 8 8 4 6 10 4 2 3 14 Fast Attach 64 | 5 4 . 1 . 5 1 3 6 6 7 5 4 17 Attach 45 | 2 4 1 1 . 6 4 . 2 6 3 1 3 12 Detach 18 | 3 . . 2 . 2 . . 1 5 1 . . 4 Swap 34 | . 1 . . . 1 1 3 11 6 1 3 3 4 Drop 87 | . 9 1 2 . 10 3 7 9 13 9 5 5 14 Fire 46 | 8 12 2 . . 2 . 1 2 7 3 . . 9 Melee 100 | . . . . . . 2 . 3 25 9 8 4 49 Ram 1 | . 1 . . . . . . . . . . . . Kick . | . . . . . . . . . . . . . . Crush . | . . . . . . . . . . . . . . Escape Stasis 1 | . . . . . . . . . 1 . . . . Rewire . | . . . . . . . . . . . . . . Trap . | . . . . . . . . . . . . . . Miscellaneous . | . . . . . . . . . . . . . . Route ------- -11/Scrapyard -10/Materials -10/Mines (discovered 3 exits: [*Mat x2] / *Exi) -10/Exiles -9/Mines -8/Materials (discovered 4 exits: *Fac x3 / *Sto) -7/Factory -7/DSF -6/Factory (discovered 4 exits: *Fac x4) -5/Factory (discovered 5 exits: *Fac x4 / [*Ext]) -4/Factory (discovered 4 exits: *Res x4) -3/Research (discovered 4 exits: Res x3 / DSF) -3/DSF -2/Research History --------- Turn | Location | Event 5 | -11/Scrapyard | Discovered new exit (range 14) 59 | -11/Scrapyard | Entered Materials 206 | -10/Materials | Discovered new exit (range 12) 212 | -10/Materials | Entered Mines 265 | -10/Mines | Received a Mining Laser from a helpful Derelict 282 | -10/Mines | Learned location of 1 exit from Materials 320 | -10/Mines | Build established: Mutant 333 | -10/Mines | Discovered new exit (range 5) 343 | -10/Mines | Learned 2 Materials zone layouts 365 | -10/Mines | Discovered new exit (range 8) 374 | -10/Mines | Deemed a non-threat by the Exiles lab entrance 375 | -10/Mines | Discovered new exit (range 5) 376 | -10/Mines | Entered Exiles 387 | -10/Exiles | Met 8R-AWN 393 | -10/Exiles | Met EX-HEX 404 | -10/Exiles | Met EX-BIN 409 | -10/Exiles | Aligned with FarCom system 409 | -10/Exiles | Given EX-Vault access code 418 | -10/Exiles | Opened EX-Vault 421 | -10/Exiles | Found Field Lobotomy Kit 424 | -10/Exiles | Found Trap Reconfigurator 432 | -10/Exiles | Warned to stay clear of 0b10 Research branches 443 | -10/Exiles | Met EX-DEC 463 | -10/Exiles | Discovered new exit (range 14) 468 | -10/Exiles | Left Exiles lab with Trap Reconfigurator 468 | -10/Exiles | Entered Mines 469 | -9/Mines | Assembled infested the area 496 | -9/Mines | Discovered new exit (range 10) 500 | -9/Mines | Entered Materials 500 | -8/Materials | Evolved 4 slots: Propulsion x2, Utility x2 501 | -8/Materials | Identified exit to Factory 546 | -8/Materials | Discovered new exit (range 15) 565 | -8/Materials | Identified exit to Storage 597 | -8/Materials | Entered Factory 597 | -7/Factory | Evolved 2 slots: Propulsion x2 676 | -7/Factory | Identified exit to DSF 676 | -7/Factory | Entered DSF 693 | -7/DSF | Additional patrols routed to DSF 720 | -7/DSF | Discovered new exit (range 16) 732 | -7/DSF | Identified exit to Factory 732 | -7/DSF | Entered Factory 732 | -6/Factory | Evolved 2 slots: Utility x2 859 | -6/Factory | Fabricated Hacking Suite (x1) 980 | -6/Factory | Identified exit to Factory 1047 | -6/Factory | Entered another Factory area 1047 | -5/Factory | Accompanied by 1 ally 1047 | -5/Factory | Evolved 2 slots: Utility x2 1168 | -5/Factory | Discovered new exit (range 10) 1319 | -5/Factory | Identified exit to Factory 1396 | -5/Factory | Fabricated Imp. Hacking Suite (x1) 1430 | -5/Factory | Found Imp. Powered Armor 1459 | -5/Factory | Crushed by falling debris 1476 | -5/Factory | Entered another Factory area 1476 | -4/Factory | Evolved 2 slots: Power x1, Utility x1 1490 | -4/Factory | Lost 3 parts (1n1u1w) 1545 | -4/Factory | Discovered new exit (range 16) 1622 | -4/Factory | Build established: Hacker-Scout 1626 | -4/Factory | Fabricated Lgt. Quantum Reactor (x2) 1722 | -4/Factory | Identified exit to Research 1738 | -4/Factory | Entered Research 1738 | -3/Research | Evolved 2 slots: Propulsion x1, Utility x1 1825 | -3/Research | Spotted B-86 Titan 1831 | -3/Research | Identified exit to Research 1860 | -3/Research | Identified exit to DSF 1860 | -3/Research | Entered DSF 1907 | -3/DSF | Additional patrols routed to DSF 1918 | -3/DSF | Discovered exit to Research (range 21) 1931 | -3/DSF | Entered Research 1931 | -2/Research | Evolved 2 slots: Utility x2 2307 | -2/Research | Found Prototype Device 2307 | -2/Research | Identified Exp. Thermal Shield 2316 | -2/Research | Lost 13 parts (3p2n6u2w) 2493 | -2/Research | System corruption reached 10% 2494 | -2/Research | Core integrity fell below 50% 2513 | -2/Research | Crushed by falling debris 2522 | -2/Research | Core integrity fell below 20% 2549 | -2/Research | Lost 12 parts (3p6n3u) 2609 | -2/Research | Destroyed by P-80 Master with Gamma Rifle Last Messages --------------- results: 02576_ Recycling Unit x1 02583_ System corrupted: Matter fused (-6). 02584_ Adv. Heat Sink destroyed. 02589_ Hacking Suite destroyed. 02590_ >> Machine Analyzer network decryption results: 02590_ Terminal x2 02596_ >> Machine Analyzer network decryption results: 02596_ Terminal x1 02603_ >> Machine Analyzer network decryption results: 02603_ Terminal x3 02603_ Dropped Backup Propulsion VII. 02603_ Acquired Impulse Thruster. 02604_ 4GSC UVOS%K4VHNI&/4%URX60P9 T|R 9P6 02606_ Acquired Impulse Thruster. 02607_ ALERT: Hostiles spotted, dispatching reinforcements to Terminal R001. Map ----- +----------------------------------------------------+ | ??????????????????????????????## """ ##????? | | ???????????????"""????????????## """ ##### | | ???????????????"""????????????##!! """ ####### | | ???????????????"""????????????##! # ! | | ???????????????"""?? # ????##! # ! | | ???????????????"""?? + ????####"######### ! | | ???????????????????? # ????## #### | | ???????????????? # ????## #### | | ????????????????###### ????## ! ""#### | | ???????????????? T R ????## ""#### | | ??????????????????o g????## Y"#### | | ????????????? ???? g BB??## ""#### | | ????????????? ?? BB??## ""#### | | ?????????????## ? ##??## / / | | ????????????? # ##??## #### | | ????????????? # """ g##??######h############# | | ????????????? # """ ?? | | """?????????? # """ ??? | | """?????????? # ???h | | ????????????? # | | ????????????? # ######################## | | ????????????? # """ #################### | | ????????????? # """ # w p p + | | ????????????? # """ # != = ####### | | ????????????? # k p# ! ! ####### | | ????????????? # @# ==! ##???## | | ?????????????## + ##???## | | ?????????????## """ ###############???## | | ????????????? # """ w###############???## | | ????????????? #k """ ##????????????????####"" | | ????????????? # ????????????????####"" | | ???????????"""# ???????????????????#### | | ????????????T"# ???????????????????#### | | ???????????"""# ] ?????????????????????? | | ????????????? # #########?????????????????????? | | ????????????? # #########?????????????????????? | | ?????????????## ???????????????????????????????? | | ????????????? ????????????????????????????????? | | ???????????? ????????????????????????????????? | | ??????????? ?????????????????????????????????? | | ?????????? ??????????????????????????????????? | | ??????????#####??????????????????????????????????? | | ?????????? ??????????????????????????????????? | | ?????????????????????????????????????????????????? | | ?????????????????????????????????????????????????? | | ????????????????????????????????????????""""?????? | | ????????????????????????????????????????""""?????? | | ????????????????????????????????????????""""?????? | | ????????????????????????????????????????""""?????? | | ?????????????????????????????????????????????????? | +----------------------------------------------------+ Best States ------------- Heat Dissipation 87 Energy Generation 53 Energy Capacity 600 Matter Stores 300 Matter Capacity 300 Sight Range 22 Terrain Scan Range 20 Terrain Scan Density 85 ECM Strength 2 Armor Coverage 400 Propulsion Shielding 66 Utility Shielding 66 Evasion (%) 65 Targeting Accuracy 8 Melee Accuracy 8 Recoil Reduction 2 Offensive Hacking 34 Authchip Count 1 Item Schematics ----------------- Hacking Suite | -7/Factory | Hacked Mining Claw | -6/Factory | Extracted Imp. Hacking Suite | -6/Factory | Hacked System Shield | -5/Factory | Hacked Nuclear Pulse Array | -4/Factory | Hacked Robot Schematics ------------------ M-13 Machinist | -10/Materials | Hacked Fabricated ------------ Hacking Suite | x1 | -6/Factory | Authchip Imp. Hacking Suite | x1 | -5/Factory | Authchip Lgt. Quantum Reactor | x2 | -4/Factory | Preloaded Alien Tech Used ----------------- None Achievements -------------- None Challenges ------------ None Game ------ Seed CannonPropulsionMagmablaster Manual? 0 Play Time 01:16:30 Cumulative 723.2 hours Start 2024.09.17 @ 11:17:39 End 2024.09.17 @ 12:35:11 Sessions 1 Manual Loads 0 Difficulty Rogue Special Mode None Game No. 157 Rogue 19 Adventurer 138 Explorer 0 Win Type - Total 11 Types 7/0/1/2/0/0/0/0/1 Lore% 78 Gallery% 84 Achievement% 73 Wizard Run 0 Options --------- Layout 2 ASCII 0 Keyboard 0 Movement Mouse Keybinds 0 Fullscreen 1 Font 24/Smallcaps Map View 50x49 Zoom Use 0% Tactical HUD 1 Map Filters NONE Filters NONE Steam 1 RUN: 995c0b81-90e0-4120-9228-dd55e4a08514